Workbook

Sheet Introduction
A1: Building a Better Business ‘The Liberation Work Out’
A2: This CD is intended to provide a business tool covering essential information to enable you to calculate your Gross Profit Margins and Selling prices Aspects Covered: Cuisine/Menu Costing/Selling Price Gross Profit Calculator for: Draught Beers Bottled Beers/Minerals Post Mix Wines Spirits Business Break Even Calculator Other Information Calculating Cost of Wastage Staff Costings Quick Calculation Tables
A3: The Business break even calculator illustrates very clearly the point in the month/week when based on your sales, all the overheads of the business are covered and you move into positive cash flow. Additional pages include Tables for quick calculations, and examples of how much wastage on draught beer and staff costs could affect your bottom line. To keep up to date on prices, check the Website, updated regularly, before reprinting Tariffs, new Wine Lists etc. www.wadworth .co.uk Visit Trade Only User name Wadworth Password: 30177 Or check with Telesales
A4: How to use this CD
A5: Index

Sheet How to Use this CD
A1: Building a Better Business ‘The Butcombe Work Out’
A3: To complete any of the calculator sheets, the following colours will guide you through:
A5: Enter Costs or margin required
A7: Indicates drop down boxes for you to change the options.
A9: Result
A11: Information
A13: To print any of the sheets with your personal calculations click on the printer icon on the toolbar; go to File and Print or hold down the Ctrl key and press P.
A15: Introduction
A16: Index

Sheet Index
A1: Building a Better Business ‘The Liberation Work Out’
A2: Index
A3: Introduction
A4: How to use this CD
A5: Cuisine/Menu Costing/Selling Price
A6: Gross Profit Calculator for:
A7: Draught Beers
A8: Bottled Beers/Minerals
A9: Post Mix Bag in Box
A10: Wines
A11: Spirits
A12: Business Break Even Calculator
A13: Other Information
A14: Calculating Cost of Wastage
A15: Staff Costings
A16: Quick Calculation Tables
A17: Calculating your Retail Price
A18: Pricing Your Wines

Sheet Cuisine
A1: Building a Better Business ‘The Liberation Work Out’
A2: Food | B2: Gross Profit Margin Calculator
A4: Calculating the cost price of the meal
D5: cost price
A6: Main ingredient cost | D6: 0
A7: For "multi portion" e.g. pie
A8: input total cost | B8: 16.8
A9: and number of portions | B9: 8 | D9: =IF(ISERROR(B8/B9),"",B8/B9) -> 2.1
A10: Vegetable 1 | D10: 0.54
A11: Vegetable 2 | D11: 0.32
A12: Vegetable 3 | D12: 0.28
A13: Garnish | D13: 0.2
A14: Sauce | D14: 0
A15: Other | D15: 0
A16: Total cost | D16: =IF(SUM(D6:D15)=0,"",SUM(D6:D15)) -> 3.44
A18: Calculating menu price or desired margin
A20: At a Retail Price of | B20: 9.99 | C20: Margin | D20: =(B20-D16)/B20 -> 0.6556556557
A21: To get a Gross Profit Margin of | B21: 65 | C21: Charge | D21: =(D16/((100-B21)/100)) -> 9.828571429
A24: Back to index

Sheet Draught Beers
A1: Building a Better Business ‘The Liberation Work Out’
A2: Draught Beers/Lager/Cider | B2: Gross Profit Margin Calculator
A4: Size of container in gallons | B4: 9
A5: Number of pints | B5: =IF((B4*8)=0,"",B4*8) -> 72
A7: Enter the cost price (ex. VAT) for the container | B7: 96.2
A8: Cost price per pint | B8: =IF(ISERROR(B7/B5),"",B7/B5) -> 1.336111111
A10: Enter your proposed selling price per pint OR | B10: 3.03
A11: Enter your required GPM per pint | B11: 47
A13: Your GPM at your proposed selling price will be | B13: =(B10-B8)/B10 -> 0.5590392373
A14: Your selling price for your required GPM should be | B14: =(B8/((100-B11)/100)) -> 2.520964361
A18: Back to index

Sheet Bottled Beers
A1: Building a Better Business ‘The Liberation Work Out’
A2: Bottled Beers and Minerals | B2: Gross Profit Margin Calculator
A4: How many bottles in the case? | B4: 24 | E4: 12
E5: 18
A6: Enter the cost price (ex. VAT) for the case | B6: 25.8 | E6: 24
A7: Cost price per bottle | B7: =IF(ISERROR(B6/B4),"",B6/B4) -> 1.075
A9: Enter your proposed selling price per bottle OR | B9: 2.6
A10: Enter your required GPM per bottle | B10: 51
A12: Your GPM at your propsed selling price will be | B12: =((B9-B7)/B9) -> 0.5865384615
A13: Your selling price for your required GPM should be | B13: =(B7/((100-B10)/100)) -> 2.193877551
A15: Back to index

Sheet Postmix Bag in Box
A1: Building a Better Business ‘The Liberation Work Out’
A2: Postmix Bag in Box | B2: Gross Profit Margin Calculator
A4: Select the number of litres in your BIB | B4: 7 | E4: 7 | F4: =E4/0.568 -> 12.32394366
E5: 12 | F5: =E5/0.568 -> 21.12676056
A6: Enter the cost price (ex. VAT) for the postmix bag in box | B6: 40.06 | E6: no. of pints | F6: =VLOOKUP(B4,E4:F5,2,FALSE) -> 12.32394366
A7: Select the product | B7: Britvic
A10: Select a dispense size from the dropdown list: | B10: 16oz | F10: dilution | G10: no.of pints
A11: Enter your proposed selling price per dispense OR | B11: 2 | E11: Coca Cola | F11: 5.4:1 | G11: =F6*5.4+F6 -> 78.87323944
A12: Enter your required GPM per dispense | B12: 78 | E12: Lemonade | F12: 7.5:1 | G12: =F6*7.5+F6 -> 104.7535211
E13: Britvic | F13: 5:1 | G13: =F6*5+F6 -> 73.94366197
A14: Your GPM at your proposed selling price will be | B14: =((B11-F24)/B11) -> 0.7832944762 | E14: no.of pints | F14: =VLOOKUP(B7,E11:G13,3,FALSE) -> 73.94366197
A15: Your selling price for your required GPM should be | B15: =(F24/((100-B12)/100)) -> 1.970050216
A17: Back to index | E17: 2oz dash | F17: =(F14*20)/2 -> 739.4366197
E18: Half Pint | F18: =(F14*20)/10 -> 147.8873239
E19: 16oz | F19: =(F14*20)/16 -> 92.42957746
E20: no.of dispenses | F20: =VLOOKUP(B10,E17:F19,2,FALSE) -> 92.42957746
E24: cost per dispense | F24: =B6/F20 -> 0.4334110476

Sheet Wines
A1: Building a Better Business ‘The Liberation Work Out’
A2: Wines by the glass | B2: Gross Profit Margin Calculator
A5: Enter the cost price (ex. VAT) for each bottle of wine | B5: 7
A6: Select the size of the bottle | B6: 75cl
A8: Enter your proposed selling price per glass | B8: 3
A11: Your GPM at this price will be
A12: 125 ml glass | B12: =(B8-C24)/B8 -> 0.6111111111
A13: 175 ml glass | B13: =(B8-D24)/B8 -> 0.4548286604
A14: 250 ml glass | B14: =(B8-E24)/B8 -> 0.2222222222
A17: Back to index
C18: Number of glasses in bottle
B19: bottle size | C19: 125ml | D19: 175ml | E19: 250ml
B20: 75cl | C20: 6 | D20: 4.28 | E20: 3
B21: 1 litre | C21: 8 | D21: 5.71 | E21: 4
B22: 1.5 litre | C22: 12 | D22: 8.57 | E22: 6
B24: cost price per glass | C24: =B5/(VLOOKUP(B6,B20:E22,2,FALSE)) -> 1.166666667 | D24: =B5/(VLOOKUP(B6,B20:E22,3,FALSE)) -> 1.635514019 | E24: =B5/(VLOOKUP(B6,B20:E22,4,FALSE)) -> 2.333333333

Sheet Spirits
A1: Building a Better Business ‘The Liberation Work Out’
A2: Spirits | B2: Gross Profit Margin Calculator
A5: Enter the cost price (ex. VAT) for each bottle of spirits | B5: 23.2
A6: Select the size of the bottle | B6: 1.5 litre
A8: Enter your proposed selling price per shot | B8: 2.3
A11: Your GPM at this price will be
A12: 25ml shot | B12: =(B8-C23)/B8 -> 0.831884058
A13: 35ml shot | B13: =(B8-D23)/B8 -> 0.7643234458
A14: 50ml shot | B14: =(B8-E23)/B8 -> 0.6637681159
A17: Back to index
C18: Number of shots in bottle
B19: bottle size | C19: 25ml | D19: 35ml | E19: 50ml
B20: 70cl | C20: 28 | D20: 20 | E20: 14
B21: 1.5 litre | C21: 60 | D21: 42.8 | E21: 30
B23: cost price per shot | C23: =B5/(VLOOKUP(B6,B20:E21,2,FALSE)) -> 0.3866666667 | D23: =B5/(VLOOKUP(B6,B20:E21,3,FALSE)) -> 0.5420560748 | E23: =B5/(VLOOKUP(B6,B20:E21,4,FALSE)) -> 0.7733333333

Sheet Break Even
A1: Building a Better Business ‘The Liberation Work Out’
A2: Your Business Break Even Calculator
A3: Start by entering some typical sales figures for your business:
A4: Weekly drinks sales | B4: 5000 | D4: Average GPM | E4: 0.51 | H4: =($B4/1.175)*$E4 -> 2170.212766 | K4: =B4*E4 -> 2550
A5: Weekly food sales | B5: 2000 | D5: Average GPM | E5: 0.65 | H5: =($B5/1.175)*$E5 -> 1106.382979 | K5: =B5*E5 -> 1300
A6: Weekly room sales | D6: Average GPM | E6: 0 | H6: =($B6/1.175)*$E6 -> 0 | K6: =B6*E6 -> 0
A7: Average weekly machine income (all machines) | B7: 230 | H7: =B7 -> 230 | I7: Sales exc. VAT | J7: Sales GPM | K7: =B7*E7 -> 0 | L7: Total Sales inc. VAT | M7: Sales GPM
H8: =SUM(H4:H7) -> 3506.595745 | I8: =SUM(B4:B8)/1.175 -> 6153.191489 | J8: =H8/I8 -> 0.5698824343 | K8: =SUM(K4:K7) -> 3850 | L8: =SUM(B4:B8) -> 7230 | M8: =K8/L8 -> 0.5325034578
A9: The following section deals with all business costs. Enter all costs, into one box only, to indicate whether they are paid weekly, monthly, quarterly, or annually. | H9: Gross Profit per week exc VAT | K9: Gross Profit per week inc VAT
F10: Average Weekly cost £
B11: week | C11: month | D11: quarter | E11: annual
A12: Cost (including VAT) | B12: £ | C12: £ | D12: £ | E12: £
A13: Gas | C13: 380 | F13: =(B13*52+C13*12+D13*4+E13)/52 -> 87.69230769
A14: Electricity | C14: 300 | F14: =(B14*52+C14*12+D14*4+E14)/52 -> 69.23076923
A15: Water Rates | E15: 1620 | F15: 31.15384615
A16: Bar Staff | B16: 132 | F16: 132
A17: Restaurant Staff | F17: 0
A18: Housekeeping Staff | B18: 35 | F18: 35
A19: Chef/Cook/Kitchen Staff | B19: 82 | F19: 82
A20: Any other wages | F20: 0
A21: All entertainment including Sky TV, Performing Rights etc. | E21: 480 | F21: 9.230769231
A22: Licensing Costs | E22: 295 | F22: 5.673076923
A23: Professional and Membership Fees | E23: 80 | F23: 1.538461538
A24: Equipment Rental/Contract | F24: 0
A25: Glasses/Crockery etc | C25: 60 | F25: 13.84615385
A26: Cleaning Materials | B26: 35 | F26: 35
A27: Telephones | F27: 0
A28: Stocktaker/Accountants Fees | D28: 280 | F28: 21.53846154
A29: Solicitors Fees | F29: 0
A30: Bank Charges | C30: 120 | F30: 27.69230769
A31: Loan Interest Charges | F31: 0
A32: Loan Repayments | F32: 0
A33: Motor Expenses | C33: 50 | F33: 11.53846154
A34: Business Rates | C34: 700 | F34: 161.5384615
A35: Council Tax | C35: 85 | F35: 19.61538462
A36: Rent | C36: 2333 | F36: 538.3846154
A37: Training | E37: 260 | F37: 5
A38: Insurance | E38: 640 | F38: 12.30769231
A39: Advertising | F39: 0
A40: Other Expenses | F40: 0
A41: Total Weekly Expenses | F41: =SUM(F13:F40)/VAT -> 1083.317308 | H41: =SUM(F13:F40) -> 1299.980769
A42: You will start to make a profit once your weekly takings exceed | E42: =H41/J8 -> 2281.138514
A43: Note: Staff costs - not including employer's NI
A44: Back to index

Sheet Cost of Wastage
A1: Building a Better Business ‘The Liberation Work Out’
A2: Calculating Cost of Wastage
A4: Enter the number of drip trays in your pub | B4: 5
A6: Enter average cost per pint | B6: 4
A7: assuming each drip trays contains just 1 pint of waste the following calculation applies
A8: If all trays are half filled every night | B8: =B6*0.5*B4 -> 10
A10: Cost to you per week | B10: =B8*7 -> 70
A12: Cost of wastage in one year | B12: =B10*52 -> 3640
A14: Back to index

Sheet Staff Costs
A1: Building a Better Business ‘The Liberation Work Out’
A2: Staff Costings
A4: On reviewing staffing levels what savings can be made over a year by reducing staff hours by one hour per day?
A6: Number of staff | B6: 1
A7: Hourly Rate | B7: 5.85
A9: Savings per week
A10: 5 days | B10: =B6*B7*5 -> 29.25
A11: 7 days | B11: =B6*B7*7 -> 40.95
A13: Saving per annum
A14: 5 day week | B14: =B10*52 -> 1521
A15: 7 day week | B15: =B11*52 -> 2129.4
A18: Back to index

Sheet Retail Price
A1: Building a Better Business ‘The Liberation Work Out’
A2: ="CALCULATING A RETAIL PRICE (inc. VAT @ " & VATrate & "%) USING A MULTIPLIER" -> CALCULATING A RETAIL PRICE (inc. VAT @ 20%) USING A MULTIPLIER
A3: GROSS PROFIT % REQUIRED | B3: 25 | C3: Multiply the COST (exc. VAT) by | D3: =100/(100-B3) -> 1.333333333
B4: 26 | D4: =100/(100-B4) -> 1.351351351
B5: 27 | D5: =100/(100-B5) -> 1.369863014
B6: 28 | D6: =100/(100-B6) -> 1.388888889
B7: 29 | D7: =100/(100-B7) -> 1.408450704
B8: 30 | D8: =100/(100-B8) -> 1.428571429
B9: 31 | D9: =100/(100-B9) -> 1.449275362
B10: 32 | D10: =100/(100-B10) -> 1.470588235
B11: 33 | D11: =100/(100-B11) -> 1.492537313
B12: 34 | D12: =100/(100-B12) -> 1.515151515
B13: 35 | D13: =100/(100-B13) -> 1.538461538
B14: 36 | D14: =100/(100-B14) -> 1.5625
B15: 37 | D15: =100/(100-B15) -> 1.587301587
B16: 38 | D16: =100/(100-B16) -> 1.612903226
B17: 39 | D17: =100/(100-B17) -> 1.639344262
B18: 40 | D18: =100/(100-B18) -> 1.666666667
B19: 41 | D19: =100/(100-B19) -> 1.694915254
B20: 42 | D20: =100/(100-B20) -> 1.724137931
B21: 43 | D21: =100/(100-B21) -> 1.754385965
B22: 44 | D22: =100/(100-B22) -> 1.785714286
B23: 45 | D23: =100/(100-B23) -> 1.818181818
B24: 46 | D24: =100/(100-B24) -> 1.851851852
B25: 47 | D25: =100/(100-B25) -> 1.886792453
B26: 48 | D26: =100/(100-B26) -> 1.923076923
B27: 49 | D27: =100/(100-B27) -> 1.960784314
B28: 50 | D28: =100/(100-B28) -> 2
B29: 51 | D29: =100/(100-B29) -> 2.040816327
B30: 52 | D30: =100/(100-B30) -> 2.083333333
B31: 53 | D31: =100/(100-B31) -> 2.127659574
B32: 54 | D32: =100/(100-B32) -> 2.173913043
B33: 55 | D33: =100/(100-B33) -> 2.222222222
B34: 56 | D34: =100/(100-B34) -> 2.272727273
B35: 57 | D35: =100/(100-B35) -> 2.325581395
B36: 58 | D36: =100/(100-B36) -> 2.380952381
A37: ="These multiplier figures will give you a quick calculation for the retail price to be charged e.g. to calculate a retail price which gives you a 40% GP on your cost price of £1.10 per unit:" -> These multiplier figures will give you a quick calculation for the retail price to be charged e.g. to calculate a retail price which gives you a 40% GP on your cost price of £1.10 per unit: | B37: 59 | D37: =100/(100-B37) -> 2.43902439
B38: 60 | D38: =100/(100-B38) -> 2.5
B39: 61 | D39: =100/(100-B39) -> 2.564102564
B40: 62 | D40: =100/(100-B40) -> 2.631578947
B41: 63 | D41: =100/(100-B41) -> 2.702702703
B42: 64 | D42: =100/(100-B42) -> 2.777777778
B43: 65 | D43: =100/(100-B43) -> 2.857142857
B44: 66 | D44: =100/(100-B44) -> 2.941176471
A45: ="1.10 x " & D18 & " = £" & 1.1*D18 -> 1.10 x 1.66666666666667 = £1.83333333333333 | B45: 67 | D45: =100/(100-B45) -> 3.03030303
B46: 68 | D46: =100/(100-B46) -> 3.125
B47: 69 | D47: =100/(100-B47) -> 3.225806452
B48: 70 | D48: =100/(100-B48) -> 3.333333333
A50: Back to index

Sheet Pricing Wines
A1: Building a Better Business ‘The Liberation Work Out’
A2: Wine Profit Calculator
A4: A guide to help deliver the targeted gross profit
A6: Required | B6: Multiply
A7: Gross | B7: the
A8: Profit % | B8: cost by
A9: 0.45 | B9: 2.18
A10: 0.5 | B10: 2.4
A11: 0.55 | B11: 2.67
A12: 0.6 | B12: 3
A13: 0.65 | B13: 3.43
A14: 0.7 | B14: 4
A16: Price per glass from standard 750ml bottle
A18: Cost per | B18: per glass | D18: £
A19: bottle £ | B19: 125ml | C19: 175ml | D19: 250ml
A20: 3.75 | B20: =A20/6 -> 0.625 | C20: =A20/4.28 -> 0.8761682243 | D20: =A20/3 -> 1.25
A21: 4.003 | B21: 0.6671666667 | C21: 0.9352803738 | D21: 1.334333333
A22: 4.25 | B22: 0.7083333333 | C22: 0.9929906542 | D22: 1.416666667
A23: 4.5 | B23: 0.75 | C23: 1.051401869 | D23: 1.5
A24: 4.75 | B24: 0.7916666667 | C24: 1.109813084 | D24: 1.583333333
A25: 5 | B25: 0.8333333333 | C25: 1.168224299 | D25: 1.666666667
A27: Margin Per Glass
A29: Cost per | B29: Cost | D29: 175ml | G29: Cost | I29: 250ml
A30: bottle £ | B30: per glass | C30: 0.55 | D30: 0.6 | E30: 0.65 | F30: 0.7 | G30: per glass | H30: 0.55 | I30: 0.6 | J30: 0.65 | K30: 0.7
A31: 3.75 | B31: 0.88 | C31: 2.35 | D31: 2.64 | E31: 3.02 | F31: 3.52 | G31: 1.25 | H31: 3 | I31: 3.75 | J31: 4.29 | K31: 5
A32: 4.003 | B32: 0.94 | C32: 2.51 | D32: 2.82 | E32: 3.22 | F32: 3.76 | G32: 1.33 | H32: 3.19 | I32: 3.99 | J32: 4.56 | K32: 5.32
A33: 4.25 | B33: 0.99 | C33: 2.64 | D33: 2.97 | E33: 3.4 | F33: 3.96 | G33: 1.42 | H33: 3.4 | I33: 4.26 | J33: 4.87 | K33: 5.68
A34: 4.5 | B34: 1.05 | C34: 2.8 | D34: 3.15 | E34: 3.6 | F34: 4.2 | G34: 1.5 | H34: 3.6 | I34: 4.5 | J34: 5.15 | K34: 6
A35: 4.75 | B35: 1.11 | C35: 2.96 | D35: 3.33 | E35: 3.8 | F35: 4.44 | G35: 1.58 | H35: 3.79 | I35: 4.74 | J35: 5.42 | K35: 6.32
A36: 5 | B36: 1.17 | C36: 3.12 | D36: 3.51 | E36: 4.01 | F36: 4.68 | G36: 1.67 | H36: 4 | I36: 5.01 | J36: 5.73 | K36: 6.68
A38: Alternatively take the cost per glass and use Table 1
A39: 750ml bottle:- Divide by 3 for 250ml
A40: Divide by 4.28 for 175ml
A41: Divide by 6 for 125ml
A43: Back to index
